lending/lending_fUSD_20250121
["ID","MTS","AMOUNT","RATE_DAILY","PERIOD"]
[349811868,1737444633816,-500.0,0.00021898,2]
[349811869,1737444633826,-472.52065754,0.00021898,2]
[349811870,1737444633836,-500.0,0.00021898,2]
[349811871,1737444633845,-500.0,0.00021898,2]
[349811872,1737444633855,-64820.2056,0.00021899,2]
[349811873,1737444633865,-1966.0,0.00021899,2]
[349811874,1737444633875,-437.34,0.000219,2]
[349811875,1737444633884,-981.79,0.000219,2]
[349811876,1737444633893,-981.79,0.000219,2]
[349811877,1737444633902,-171.79791572,0.000219,2]
[349811878,1737444633911,-2000.0,0.000219,2]
[349811879,1737444633921,-2000.0,0.000219,2]
[349811880,1737444633930,-2000.0,0.000219,2]
[349811881,1737444633939,-2000.0,0.000219,2]
[349811882,1737444633948,-2000.0,0.000219,2]
[349811883,1737444633958,-2000.0,0.000219,2]
[349811884,1737444633967,-2000.0,0.000219,2]
[349811885,1737444633976,-2000.0,0.000219,2]
[349811886,1737444633986,-160.62321352,0.000219,2]
[349811887,1737444633995,-1000.0,0.000219,2]
[349811888,1737444634005,-742.43618427,0.000219,2]
[349811889,1737444634014,-742.43618413,0.000219,2]
[349811890,1737444634023,-742.43618413,0.000219,2]
[349811891,1737444634032,-742.43618413,0.000219,2]
[349811892,1737444634041,-742.43618413,0.000219,2]
[349811893,1737444634050,-742.43618413,0.000219,2]
[349811894,1737444634060,-742.43618413,0.000219,2]
[349811895,1737444634068,-742.43618413,0.000219,2]
[349811896,1737444634078,-742.43618413,0.000219,2]
[349811897,1737444634087,-742.43618413,0.000219,2]
[349811898,1737444634097,-742.43618413,0.000219,2]
[349811899,1737444634106,-742.43618413,0.000219,2]
[349811900,1737444634115,-742.43618413,0.000219,2]
[349811901,1737444634125,-742.43618413,0.000219,2]
[349811902,1737444634134,-742.43618413,0.000219,2]
[349811903,1737444634144,-35259.83395029,0.000219,2]
[349811904,1737444634153,-742.43618413,0.000219,2]
[349811905,1737444634162,-742.43618413,0.000219,2]
[349811906,1737444634172,-742.43618413,0.000219,2]
[349811907,1737444634181,-1814.62,0.000219,31]
[349811908,1737444634191,-1814.62,0.000219,31]
[349811909,1737444634201,-1814.62,0.000219,31]
[349811910,1737444634211,-1814.62,0.000219,31]
[349811911,1737444634220,-1814.62,0.000219,31]
[349811912,1737444634233,-1814.62,0.000219,31]
[349811913,1737444634242,-1814.62,0.000219,31]
[349811914,1737444634252,-1814.62,0.000219,31]
[349811915,1737444634261,-1814.62,0.000219,31]
[349811916,1737444634271,-1814.62,0.000219,31]
[349811917,1737444634282,-1814.62,0.000219,31]
[349811918,1737444634292,-1814.62,0.000219,31]
[349811919,1737444634301,-1814.62,0.000219,31]
[349811920,1737444634311,-1814.62,0.000219,31]
[349811921,1737444634322,-1814.62,0.000219,31]
[349811922,1737444634332,-1814.62,0.000219,31]
[349811923,1737444634342,-742.43618413,0.000219,2]
[349811924,1737444634352,-5276.85963497,0.000219,2]
[349811925,1737444634362,-742.43618413,0.000219,2]
[349811926,1737444634372,-206.34062125,0.000219,3]
[349811927,1737444634381,-217.76122678,0.000219,2]
[349811928,1737444634391,-2014.24,0.000219,2]
[349811929,1737444634403,-482.00340272,0.000219,2]
[349811930,1737444634412,-155.73109994,0.000219,4]
[349811931,1737444634421,-18779.515003,0.000219,2]
[349811932,1737444634431,-150.0,0.00021907,2]
[349811933,1737444634440,-1000.0,0.00021909,2]
[349811934,1737444634450,-150.0,0.00021914,2]
[349811935,1737444634459,-150.0,0.00021918,2]
[349811936,1737444634468,-399.88289643,0.0002192,2]
[349811937,1737444634478,-399.88289643,0.0002192,2]
[349811938,1737444634487,-399.88289643,0.0002192,2]
[349811939,1737444634496,-399.88289643,0.0002192,2]
[349811940,1737444634506,-399.88289643,0.0002192,2]
[349811941,1737444634516,-399.88289643,0.0002192,2]
[349811942,1737444634524,-399.88289643,0.0002192,2]
[349811943,1737444634533,-399.88289643,0.0002192,2]
[349811944,1737444634542,-399.88289643,0.0002192,2]
[349811945,1737444634551,-399.88289643,0.0002192,2]
[349811946,1737444634561,-399.88289643,0.0002192,2]
[349811947,1737444634572,-399.88289643,0.0002192,2]
[349811948,1737444634581,-399.88289643,0.0002192,2]
[349811949,1737444634590,-399.88289643,0.0002192,2]
[349811950,1737444634599,-399.88289643,0.0002192,2]
[349811951,1737444634608,-399.88289643,0.0002192,2]
[349811952,1737444634617,-399.88289643,0.0002192,2]
[349811953,1737444634626,-399.88289643,0.0002192,2]
[349811954,1737444634635,-399.88289643,0.0002192,2]
[349811955,1737444634644,-399.88,0.0002192,2]
[349811956,1737444634654,-933.06009168,0.0002192,2]
[349811957,1737444634664,-933.06009168,0.0002192,2]
[349811958,1737444634673,-933.06009168,0.0002192,2]
[349811959,1737444634683,-933.06009168,0.0002192,2]
[349811960,1737444634692,-933.06009168,0.0002192,2]
[349811961,1737444634701,-933.06009168,0.0002192,2]
[349811962,1737444634710,-933.06009168,0.0002192,2]
[349811963,1737444634719,-933.06009168,0.0002192,2]
[349811964,1737444634728,-933.06009168,0.0002192,2]
[349811965,1737444634737,-933.06009168,0.0002192,2]
[349811966,1737444634746,-933.06009168,0.0002192,2]
[349811967,1737444634755,-933.06009168,0.0002192,2]
[349811968,1737444634764,-933.06009168,0.0002192,2]
[349811969,1737444634774,-933.06009168,0.0002192,2]
[349811970,1737444634784,-933.06009168,0.0002192,2]
[349811971,1737444634793,-933.06009168,0.0002192,2]
[349811972,1737444634802,-933.06009168,0.0002192,2]
[349811973,1737444634811,-933.06009168,0.0002192,2]
[349811974,1737444634821,-933.06009168,0.0002192,2]
[349811975,1737444634830,-933.06,0.0002192,2]
[349811976,1737444634842,-1060.16570752,0.0002192,2]
[349811977,1737444634852,-1060.16570752,0.0002192,2]
[349811978,1737444634861,-1060.16570752,0.0002192,2]
[349811979,1737444634870,-1060.16570752,0.0002192,2]
[349811980,1737444634880,-1060.16570752,0.0002192,2]
[349811981,1737444634889,-1060.16570752,0.0002192,2]
[349811982,1737444634898,-1060.16570752,0.0002192,2]
[349811983,1737444634907,-1060.16570752,0.0002192,2]
[349811984,1737444634916,-1060.16570752,0.0002192,2]
[349811985,1737444634929,-1060.16570752,0.0002192,2]
[349811986,1737444634938,-1060.16570752,0.0002192,2]
[349811987,1737444634947,-1060.16570752,0.0002192,2]
[349811988,1737444634956,-1060.16570752,0.0002192,2]
[349811989,1737444634966,-1060.16570752,0.0002192,2]
[349811990,1737444634975,-1060.16570752,0.0002192,2]
[349811991,1737444634984,-1060.16570752,0.0002192,2]
[349811992,1737444634994,-1060.16570752,0.0002192,2]
[349811993,1737444635003,-1060.16570752,0.0002192,2]
[349811994,1737444635012,-1060.16570752,0.0002192,2]
[349811995,1737444635022,-1060.16,0.0002192,2]
[349811996,1737444635031,-2473.71998421,0.0002192,2]
[349811997,1737444635040,-2473.71998421,0.0002192,2]
[349811998,1737444635050,-2473.71998421,0.0002192,2]
[349811999,1737444635059,-2473.71998421,0.0002192,2]
[349812000,1737444635069,-2473.71998421,0.0002192,2]
[349812001,1737444635082,-2473.71998421,0.0002192,2]
[349812002,1737444635092,-2473.71998421,0.0002192,2]
[349812003,1737444635101,-2473.71998421,0.0002192,2]
[349812004,1737444635111,-2473.71998421,0.0002192,2]
[349812005,1737444635121,-2473.71998421,0.0002192,2]
[349812006,1737444635131,-2473.71998421,0.0002192,2]
[349812007,1737444635140,-2473.71998421,0.0002192,2]
[349812008,1737444635149,-2473.71998421,0.0002192,2]
[349812009,1737444635159,-2473.71998421,0.0002192,2]
[349812010,1737444635168,-2473.71998421,0.0002192,2]
[349812011,1737444635177,-2473.71998421,0.0002192,2]
[349812012,1737444635187,-2473.71998421,0.0002192,2]
[349812013,1737444635196,-2473.71998421,0.0002192,2]
[349812014,1737444635206,-2473.71998421,0.0002192,2]
[349812015,1737444635216,-2473.71,0.0002192,2]
[349812016,1737444635227,-537.75378843,0.0002192,2]
[349812017,1737444635239,-537.75378843,0.0002192,2]
[349812018,1737444635248,-537.75378843,0.0002192,2]
[349812019,1737444635258,-537.75378843,0.0002192,2]
[349812020,1737444635268,-537.75378843,0.0002192,2]
[349812021,1737444635278,-537.75378843,0.0002192,2]
[349812022,1737444635287,-537.75378843,0.0002192,2]
[349812023,1737444635297,-537.75378843,0.0002192,2]
[349812024,1737444635307,-537.75378843,0.0002192,2]
[349812025,1737444635316,-537.75378843,0.0002192,2]
[349812026,1737444635330,-537.75378843,0.0002192,2]
[349812027,1737444635339,-537.75378843,0.0002192,2]
[349812028,1737444635349,-537.75378843,0.0002192,2]
[349812029,1737444635358,-537.75378843,0.0002192,2]
[349812030,1737444635367,-537.75378843,0.0002192,2]
[349812031,1737444635377,-537.75378843,0.0002192,2]
[349812032,1737444635388,-537.75378843,0.0002192,2]
[349812033,1737444635397,-537.75378843,0.0002192,2]
[349812034,1737444635407,-537.75378843,0.0002192,2]
[349812035,1737444635417,-537.75,0.0002192,2]
[349812036,1737444635428,-1254.75883966,0.0002192,2]
[349812037,1737444635437,-1254.75883966,0.0002192,2]
[349812038,1737444635447,-1254.75883966,0.0002192,2]
[349812039,1737444635456,-1254.75883966,0.0002192,2]
[349812040,1737444635466,-1254.75883966,0.0002192,2]
[349812041,1737444635476,-1254.75883966,0.0002192,2]
[349812042,1737444635486,-1254.75883966,0.0002192,2]
[349812043,1737444635495,-1254.75883966,0.0002192,2]
[349812044,1737444635506,-1254.75883966,0.0002192,2]
[349812045,1737444635516,-1254.75883966,0.0002192,2]
[349812046,1737444635526,-1254.75883966,0.0002192,2]
[349812047,1737444635536,-1254.75883966,0.0002192,2]
[349812048,1737444635545,-1254.75883966,0.0002192,2]
[349812049,1737444635554,-1254.75883966,0.0002192,2]
[349812050,1737444635563,-1254.75883966,0.0002192,2]
[349812051,1737444635576,-1254.75883966,0.0002192,2]
[349812052,1737444635586,-1254.75883966,0.0002192,2]
[349812053,1737444635595,-1254.75883966,0.0002192,2]
[349812054,1737444635604,-1254.75883966,0.0002192,2]
[349812055,1737444635613,-1254.75,0.0002192,2]
[349812056,1737444635622,-150.0,0.0002193,2]
[349812057,1737444635632,-39538.68693111,0.00021934,2]
[349812058,1737444635641,-150.0,0.00021937,2]
[349812059,1737444635651,-1755888.0500992,0.00021945,2]
[349812060,1737444635801,-362291.77606268,0.00021945,2]
[349812061,1737444635813,-1054755.21352013,0.00021945,2]
[349812062,1737444635827,-258.64374734,0.00021945,2]
[349812063,1737444635850,-2663.42355409,0.00021945,2]
[349812064,1737444635861,-21641.16440528,0.00021945,2]
[349812065,1737444635877,-1143.8706425,0.00021945,2]
[349812066,1737444635911,-14594.4284409,0.00021945,2]
[349812067,1737444635923,-4900.0,0.00021945,2]
[349812068,1737444635934,-5880.0,0.00021945,2]
[349812069,1737444635945,-1905.18999971,0.00021945,2]
[349812070,1737444637930,-1000.0,0.000216,2]
[349812071,1737444637939,-500.0,0.00021797,2]
[349812072,1737444637948,-500.0,0.00021797,2]
[349812073,1737444637957,-332.91986219,0.00021945,2]
[349812074,1737444637968,-102406.0227102,0.00021945,2]
[349812075,1737444638072,-95876.580086,0.00021945,2]
[349812076,1737444638085,-329.72,0.00021945,2]
[349812077,1737444638181,-4949857.60686493,0.00021945,2]
[349812078,1737444638191,-113845.0,0.00021945,2]
[349812079,1737444638201,-150.0,0.00021947,2]
[349812080,1737444638210,-150.0,0.00021948,2]
[349812081,1737444638219,-97431.35573012,0.0002195,2]
[349812082,1737444638232,-2940.84,0.00021959,7]
[349812083,1737444638241,-2940.84,0.00021959,7]
[349812084,1737444638250,-16148.0,0.0002196,2]
[349812085,1737444638260,-400.0,0.0002197,2]
[349812086,1737444638271,-478.27153247,0.0002197,2]
[349812087,1737444638280,-799.5110661,0.00021971,10]
[349812088,1737444638289,-666.0,0.00021971,2]
[349812089,1737444638298,-150.0,0.00021973,4]
[349812090,1737444638309,-150.0,0.00021973,4]
[349812091,1737444638319,-150.0,0.00021973,4]
[349812092,1737444638329,-150.60025099,0.00021973,4]
[349812093,1737444638337,-151.6842555,0.00021973,4]
[349812094,1737444638346,-150.0,0.00021975,2]
[349812095,1737444638356,-500.0,0.00021978,2]
[349812096,1737444638365,-500.0,0.00021978,2]
[349812097,1737444638374,-500.0,0.00021978,2]
[349812098,1737444638383,-500.0,0.00021978,2]
[349812099,1737444638392,-500.0,0.00021978,2]
[349812100,1737444638401,-449.4834,0.00021978,2]
[349812101,1737444638411,-1000.0,0.00021978,2]
[349812102,1737444638420,-1000.0,0.00021978,2]
[349812103,1737444638429,-586.56,0.00021978,2]
[349812104,1737444638439,-322887.60160975,0.0002198,2]
[349812106,1737444638448,-465.84456322,0.00021985,4]
[349812108,1737444638457,-500.99,0.00021988,2]
[349812110,1737444638466,-260.63990611,0.00021989,2]
[349812111,1737444638476,-1146.1060215,0.0002199,2]
[349812114,1737444638485,-141496.14950834,0.0002199,14]
[349812116,1737444638495,-3511.119616,0.0002199,2]
[349812118,1737444638505,-2168.8665496,0.0002199,2]
[349812120,1737444638515,-1020.061685,0.0002199,2]
[349812122,1737444638524,-7214.3477555,0.0002199,2]
[349812124,1737444638533,-2000.0,0.0002199,2]
[349812126,1737444638542,-200.0,0.0002199,8]
[349812127,1737444638552,-2150.6743403,0.0002199,2]
[349812128,1737444638561,-170306.39320844,0.00021996,2]
[349812129,1737444638570,-1584.17,0.00021997,2]
[349812130,1737444638581,-500.0,0.00021998,2]
[349812131,1737444638590,-509.8840608,0.00021998,2]
[349812132,1737444638599,-500.0,0.00021998,2]
[349812133,1737444638608,-500.0,0.00021998,2]
[349812134,1737444638618,-500.0,0.00021998,2]
[349812135,1737444638627,-500.0,0.00021998,2]
[349812136,1737444638636,-500.0,0.00021998,2]
[349812137,1737444638645,-528.33,0.00021998,2]
[349812138,1737444638654,-1210.35,0.00021998,2]
[349812139,1737444638663,-500.0,0.00021998,2]
[349812140,1737444638822,-500.0,0.00021998,2]
[349812141,1737444638833,-500.0,0.00021998,2]
[349812142,1737444638843,-500.0,0.00021998,2]
[349812143,1737444638852,-500.0,0.00021998,8]
[349812144,1737444638861,-350.0,0.00021998,2]
[349812145,1737444638870,-395289.22819909,0.00021998,2]
[349812146,1737444638880,-500.0,0.00021998,2]
[349812147,1737444638889,-161.031075,0.00021998,7]
[349812148,1737444638898,-151.0,0.00021998,7]
[349812149,1737444638907,-161.384238,0.00021998,7]
[349812150,1737444638916,-500.0,0.00021998,2]
[349812151,1737444638925,-151.0,0.00021998,7]
[349812152,1737444638935,-151.834209,0.00021998,7]
[349812153,1737444638944,-1146.462683,0.00021998,7]
[349812154,1737444638953,-1146.462683,0.00021998,7]
[349812155,1737444638963,-151.0,0.00021998,7]
[349812156,1737444638972,-151.0,0.00021998,7]
[349812157,1737444638981,-151.0,0.00021998,7]
[349812158,1737444638990,-151.0,0.00021998,7]
[349812159,1737444638999,-332.5799057,0.00021998,2]
[349812160,1737444639008,-672.44042542,0.00021998,2]
[349812161,1737444639018,-2000.0,0.00021999,2]
[349812162,1737444639028,-2000.0,0.00021999,2]
[349812163,1737444639038,-2000.0,0.00021999,2]
[349812164,1737444639047,-2000.0,0.00021999,2]
[349812165,1737444639057,-500.0,0.00021999,2]
[349812166,1737444639067,-2000.0,0.00021999,2]
[349812167,1737444639076,-2000.0,0.00021999,2]
[349812168,1737444639091,-113517.45058512,0.00021999,2]
[349812169,1737444639102,-1397.1088611,0.00021999,2]
[349812170,1737444639112,-30108.86887276,0.00021999,2]
[349812171,1737444639122,-3535.72870423,0.00021999,2]
[349812172,1737444639133,-151.0,0.00021999,7]
[349812173,1737444639143,-151.0,0.00021999,7]
[349812174,1737444639153,-154.328043,0.00021999,7]
[349812175,1737444639164,-154.990602,0.00021999,7]
[349812176,1737444639174,-151.0,0.00021999,7]
[349812177,1737444639184,-1693.51306782,0.00022,2]
[349812178,1737444639194,-1864.0,0.00022,2]
[349812179,1737444639204,-2948.0,0.00022,2]
[349812180,1737444639215,-781.0,0.00022,2]
[349812181,1737444639227,-907.0,0.00022,2]
[349812182,1737444639237,-1261.0,0.00022,2]
[349812183,1737444639246,-150.665,0.00022,2]
[349812184,1737444639256,-3984.0,0.00022,2]
[349812185,1737444639267,-551.122,0.00022,2]
[349812186,1737444639277,-784.284,0.00022,2]
[349812187,1737444639287,-1357.552,0.00022,2]
[349812188,1737444639297,-150.0,0.00022,2]
[349812189,1737444639311,-2036.228,0.00022,2]
[349812190,1737444639323,-7508.07819803,0.00022,2]
[349812191,1737444639340,-604061.74427767,0.00022,2]
[349812192,1737444639357,-2213.56432176,0.00022,2]
[349812195,1737444640269,-595.05,0.00021797,2]
[349812196,1737444640279,-500.0,0.00021797,2]
[349812197,1737444640288,-1891.0,0.00021945,2]
[349812198,1737444640297,-1109.56896,0.00022,2]
[349812199,1737444640401,-1533.3,0.00022,2]
[349812200,1737444640438,-1068.54394024,0.00022,2]
[349812201,1737444640450,-190.58709976,0.00022,2]
[349812202,1737444640459,-125.67267412,0.00022,2]
[349812203,1737444640568,-168.64023808,0.00021899,2]
[349812204,1737444640580,-1348.5568696,0.00022,2]
[349812216,1737444643283,-157.93438,0.00019178,2]
[349812217,1737444643293,-494.0,0.00021797,2]
[349812218,1737444643302,-151.0,0.00021998,7]
[349812219,1737444643312,-14550.7019999,0.00022,2]
[349812258,1737444645985,-500.0,0.00021797,2]
[349812259,1737444645995,-151.0,0.00021998,7]
[349812260,1737444646004,-151.0,0.00021998,7]
[349812261,1737444646014,-9.34969011,0.00022,2]
[349812262,1737444646060,-42.90542479,0.00022,2]
[349812269,1737445618127,-787.44,0.00018872,2]
[349812270,1737445618155,-285.58,0.00020507,2]
[349812271,1737445618179,-250.0,0.00020691,2]
[349812272,1737445618201,-288.48,0.00020744,2]
[349812273,1737445618222,-1033.96,0.00020744,2]
[349812274,1737445618242,-54.41361285,0.00020754,2]
[349812275,1737445619634,157.24,0.00010137,2]
[349812282,1737445832165,-157.24,0.00017599,2]
[349812283,1737445832175,-500.0,0.00019507,2]
[349812284,1737445832185,-250.0,0.00020582,2]
[349812285,1737445832194,-5700.47,0.00020583,2]
[349812286,1737445832204,-2386.16638715,0.00020754,2]
[349812287,1737445832214,-150.0,0.00020795,2]
[349812288,1737445832223,-1000.0,0.00020813,2]
[349812289,1737445832233,-173.91,0.00020814,2]
[349812290,1737445832242,-200.0,0.00020823,2]
[349812291,1737445832251,-250.0,0.00020836,2]
[349812292,1737445832260,-1529.56798224,0.000209,2]
[349812293,1737445832269,-547.64919002,0.00021,2]
[349812294,1737445832279,-509.53,0.00021025,30]
[349812295,1737445832287,-23372.0,0.00021094,2]
[349812296,1737445832296,-298.01,0.000211,2]
[349812297,1737445832305,-787.44,0.00021136,2]
[349812298,1737445832314,-233.67538508,0.00021382,2]
[349812299,1737445832323,-298.01,0.00021479,2]
[349812300,1737445832332,-298.01,0.00021479,2]
[349812301,1737445832345,-298.01,0.00021479,2]
[349812302,1737445832354,-298.01,0.00021479,2]
[349812303,1737445832363,-298.01,0.00021479,2]
[349812304,1737445832372,-298.01,0.00021479,2]
[349812305,1737445832381,-298.01,0.00021479,2]
[349812306,1737445832390,-298.01,0.00021479,2]
[349812307,1737445832399,-298.9764879,0.0002156,2]
[349812308,1737445832408,-1210.968,0.0002156,2]
[349812309,1737445832417,-150.0,0.00021599,2]
[349812310,1737445832426,-3598.946,0.000216,2]
[349812311,1737445832435,-500.0,0.000216,2]
[349812312,1737445832443,-2450.7,0.00021685,7]
[349812313,1737445832452,-2450.7,0.00021685,7]
[349812314,1737445832462,-2450.7,0.00021685,7]
[349812315,1737445832471,-2450.7,0.00021685,7]
[349812316,1737445832480,-500.0,0.00021699,2]
[349812317,1737445832490,-500.0,0.00021699,2]
[349812318,1737445832499,-500.0,0.00021699,2]
[349812319,1737445832508,-500.0,0.00021699,2]
[349812320,1737445832517,-500.0,0.00021699,2]
[349812321,1737445832526,-500.0,0.00021699,2]
[349812322,1737445832535,-4000.02437548,0.00021699,2]
[349812323,1737445832544,-1000.0,0.000217,2]
[349812324,1737445832553,-4000.0243754,0.00021721,2]
[349812325,1737445832562,-1426.7957,0.00021739,2]
[349812326,1737445832571,-200.0,0.0002174,2]
[349812327,1737445832580,-200.0,0.00021742,2]
[349812328,1737445832591,-4000.0243754,0.00021744,2]
[349812329,1737445832602,-1428.5676,0.00021745,2]
[349812331,1737445832611,-2500.0,0.00021755,2]
[349812333,1737445832621,-150.0,0.00021757,2]
[349812335,1737445832630,-27357.30177275,0.00021758,2]
[349812336,1737445832639,-4000.0243754,0.00021766,2]
[349812337,1737445832649,-1225.1513615,0.00021768,2]
[349812338,1737445832659,-1000.0,0.00021771,2]
[349812340,1737445832668,-27357.30177275,0.00021787,2]
[349812342,1737445832678,-4000.0243754,0.00021788,2]
[349812344,1737445832687,-27357.30177275,0.00021789,2]
[349812346,1737445832696,-1544.1692742,0.00021791,2]
[349812348,1737445832705,-309.46528949,0.00021791,2]
[349812350,1737445832714,-500.0,0.00021797,2]
[349812352,1737445832723,-1711.33,0.00021797,2]
[349812354,1737445832732,-117992.89482352,0.00021799,2]
[349812356,1737445832741,-222.09682023,0.00021799,2]
[349812358,1737445832750,-500.0,0.00021799,2]
[349812360,1737445832759,-500.0,0.00021799,2]
[349812362,1737445832768,-500.0,0.00021799,2]
[349812364,1737445832778,-500.0,0.00021799,2]
[349812366,1737445832787,-500.0,0.00021799,2]
[349812368,1737445832796,-500.0,0.00021799,2]
[349812370,1737445832805,-500.0,0.00021799,2]
[349812372,1737445832814,-500.0,0.00021799,2]
[349812374,1737445832823,-500.0,0.00021799,2]
[349812376,1737445832832,-500.0,0.00021799,2]
[349812378,1737445832843,-500.0,0.00021799,2]
[349812380,1737445832852,-500.0,0.00021799,2]
[349812382,1737445832861,-500.0,0.00021799,2]
[349812384,1737445832870,-500.0,0.00021799,2]
[349812386,1737445832879,-500.0,0.00021799,2]
[349812388,1737445832887,-500.0,0.00021799,2]
[349812390,1737445832896,-500.0,0.00021799,2]
[349812392,1737445832905,-500.0,0.00021799,2]
[349812394,1737445832914,-500.0,0.00021799,2]
[349812395,1737445832923,-500.0,0.00021799,2]
[349812397,1737445832932,-500.0,0.00021799,2]
[349812399,1737445832941,-500.0,0.00021799,2]
[349812401,1737445832951,-500.0,0.00021799,2]
[349812403,1737445832961,-637.74,0.00021799,2]
[349812405,1737445832970,-500.0,0.00021799,2]
[349812407,1737445832979,-518.92,0.00021799,2]
[349812409,1737445832988,-500.0,0.00021799,2]
[349812411,1737445832997,-500.0,0.00021799,2]
[349812413,1737445833007,-12931.12,0.00021799,2]
[349812415,1737445833016,-508.11,0.00021799,2]
[349812416,1737445833026,-156.259578,0.00021799,2]
[349812418,1737445833035,-500.0,0.00021799,2]
[349812420,1737445833045,-500.0,0.00021799,2]
[349812422,1737445833055,-678.92,0.00021799,2]
[349812424,1737445833064,-500.0,0.00021799,2]
[349812426,1737445833073,-5800.0,0.000218,2]
[349812428,1737445833083,-12833.1137,0.000218,2]
[349812430,1737445833093,-5000.0,0.000218,2]
[349812432,1737445833102,-13349.6953445,0.000218,2]
[349812434,1737445833112,-1190.0,0.000218,2]
[349812436,1737445833121,-322.58,0.00021808,2]
[349812438,1737445833131,-298.01,0.00021808,2]
[349812440,1737445833141,-298.01,0.00021808,2]
[349812442,1737445833151,-298.01,0.00021808,2]
[349812444,1737445833160,-298.01,0.00021808,2]
[349812446,1737445833169,-298.01,0.00021808,2]
[349812448,1737445833178,-298.01,0.00021808,2]
[349812450,1737445833188,-298.01,0.00021808,2]
[349812452,1737445833197,-298.01,0.00021808,2]
[349812454,1737445833206,-298.01,0.00021808,2]
[349812456,1737445833215,-299.98,0.00021808,2]
[349812458,1737445833224,-4000.0243754,0.00021811,2]
[349812459,1737445833233,-13349.69534446,0.00021811,2]
[349812461,1737445833243,-13349.69534446,0.00021822,2]
[349812463,1737445833253,-4000.0243754,0.00021833,2]
[349812464,1737445833262,-4301.54111695,0.00021833,2]
[349812465,1737445833279,-609.09286191,0.00021833,2]
[349812466,1737445833297,-454.92529219,0.00021833,2]
[349812467,1737445833309,-831.35999967,0.00021833,2]
[349812468,1737445833320,-325.0,0.00021833,2]
[349812469,1737445833335,-836.27000006,0.00021833,2]
[349812470,1737445833348,-276.9999995,0.00021833,2]
[349812471,1737445833359,-485.08910048,0.00021833,2]
[349812472,1737445833371,-5229.4169737,0.00021833,2]
[349812473,1737445833380,-200.0,0.00021839,2]
[349812474,1737445833390,-27357.30177275,0.0002184,2]
[349812475,1737445833399,-13349.69534446,0.00021844,2]
[349812476,1737445833410,-4000.0243754,0.00021855,2]
[349812478,1737445833419,-13349.69534446,0.00021856,2]
[349812479,1737445833428,-150.0,0.00021866,2]
[349812481,1737445833438,-13349.69534446,0.00021867,2]
[349812483,1737445833447,-500.0,0.00021871,2]
[349812485,1737445833456,-500.0,0.00021871,2]
[349812487,1737445833466,-500.0,0.00021872,2]
[349812489,1737445833476,-506.67506671,0.00021872,2]
[349812491,1737445833486,-507.99702394,0.00021872,2]
[349812510,1737445833663,-500.0,0.00021872,2]
[349812512,1737445833675,-500.0,0.00021872,2]
[349812514,1737445833684,-509.8840608,0.00021872,2]
[349812516,1737445833694,-578.32927478,0.00021872,2]
[349812518,1737445833703,-500.0,0.00021872,2]
[349812520,1737445833712,-500.0,0.00021872,2]
[349812522,1737445833722,-500.0,0.00021872,2]
[349812524,1737445833731,-500.0,0.00021872,2]
[349812525,1737445833741,-500.0,0.00021872,2]
[349812527,1737445833750,-506.67563647,0.00021872,2]
[349812529,1737445833760,-500.0,0.00021872,2]
[349812531,1737445833769,-639.51,0.00021872,2]
[349812533,1737445833778,-500.0,0.00021872,2]
[349812535,1737445833787,-500.0,0.00021872,2]
[349812537,1737445833797,-500.0,0.00021872,2]
[349812539,1737445833806,-500.0,0.00021872,2]
[349812541,1737445833815,-500.0,0.00021872,2]
[349812543,1737445833824,-500.0,0.00021872,2]
[349812545,1737445833833,-731.11,0.00021872,2]
[349812547,1737445833844,-500.0,0.00021872,2]
[349812549,1737445833853,-171.86,0.00021872,2]